Cogmind - Beta 16 @@@ ROGUE MODE // 2025.11.14 @ 08:31:52 Player: shapeshifter Result: Destroyed by as-12386 with Assembled Rifle Performance ------------- Evolutions (0) 0 Regions Visited (2) 400 Robots Destroyed (12) 60 Value Destroyed (224) 224 Prototype IDs (0) 0 Alien Tech Used (0) 0 Bonus (0) 0 TOTAL SCORE: 684 Bonus ------- None Cogmind --------- Core Integrity 0/250 Matter 294/300 Energy 49/100 System Corruption 6% Temperature Cool (75) Movement Core (50) Location -10/Mines Parts ------- > --- POWER (1) -------- (None) > --- PROPULSION (2) --- (None) > --- UTILITY (2) ------ (None) > --- WEAPON (2) ------- Enhanced Flamer > --- INVENTORY (5) ---- Improved Heat Sink Small Storage Unit Transport Network Coupler ECM Suite Peak State ------------ > --- POWER ------------ Ion Engine > --- PROPULSION ------- (None) > --- UTILITY ---------- Visual Processing Unit Core Shielding > --- WEAPON ----------- Small Laser Enhanced Flamer > --- INVENTORY -------- Improved Heat Sink Small Storage Unit Transport Network Coupler ECM Suite Rocket Launcher [Rating: 8] Favorites ----------- Power Light Ion Engine Engine Light Ion Engine Propulsion None Utility Core Shielding Device Seismic Detector Processor Visual Processing Unit Protection Core Shielding Weapon Light Assault Rifle Energy Gun Particle Gun Ballistic Gun Light Assault Rifle Launcher Rocket Launcher Special Weapon Enhanced Flamer Build | -11 -10 -10 ------- Run | Yrd Mat Min Slots Evolved . | . . . Power . | . . . Propulsion . | . . . Utility . | . . . Weapon . | . . . Parts Attached 15 | 3 6 6 Power 3 | . 2 1 Engine 3 | . 2 1 Core . | . . . Reactor . | . . . Propulsion . | . . . Treads . | . . . Leg . | . . . Wheel . | . . . Hover . | . . . Flight . | . . . Utility 3 | 1 2 . Device 1 | 1 . . Storage . | . . . Processor 1 | . 1 . Hackware . | . . . Protection 1 | . 1 . Artifact . | . . . Weapon 9 | 2 2 5 Energy Gun 4 | 1 1 2 Energy Cannon . | . . . Ballistic Gun 2 | 1 1 . Ballistic Cannon . | . . . Launcher 2 | . . 2 Special Weapon 1 | . . 1 Impact Weapon . | . . . Slashing Weapon . | . . . Piercing Weapon . | . . . Special Melee Weapon . | . . . Unidentified Prototypes . | . . . Parts Lost 7 | . 2 5 Power 1 | . . 1 Propulsion . | . . . Utility 3 | . 1 2 Weapon 3 | . 1 2 Highest Loss Streak 3 | . 2 3 To Critical Strikes . | . . . Average Backups 3 | 2 3 4 Power . | 1 1 . Propulsion . | . . . Utility 2 | 1 2 3 Weapon . | . . 1 Tool/Special . | . . . Unused Backups 6 | . 1 5 Power 1 | . 1 . Propulsion . | . . . Utility 5 | . . 5 Weapon . | . . . Tool/Special . | . . . Average Slot Usage (%) 55 | . 55 54 Engine 11 | . 12 5 Device 1 | . 1 . Processor 5 | . 3 13 Protection 10 | . 9 14 Energy Gun 8 | . 9 1 Ballistic Gun 16 | . 17 9 Special Weapon 1 | . . 4 Peak Build Rating 8 | 3 6 8 Average Rating 4 | 1 4 5 On Entrance 3 | . 3 6 Avg Prop Armor Cover (%) . | . . . Naked Turns . | . . . Heaviest Build 9 | 3 8 9 Greatest Support 3 | 3 3 3 Greatest Overweight (x) 2 | . 2 2 Average Overweight (x) 1 | . 1 . Largest Inventory Capacity 5 | 5 5 5 Average Capacity 5 | 5 5 5 Most Carried 5 | 5 5 5 Average Carried 3 | 2 3 4 Final Capacity 5 | 5 5 5 Final Carried 5 | 3 5 4 Class Distribution -------------------- 100% | Mutant Dominant Class ---------------- Mutant | -10/Materials Mutant | -10/Mines Resources | -11 -10 -10 ----------- Run | Yrd Mat Min Matter Collected 449 | 229 65 155 Remotely . | . . . Salvage Created 344 | 18 202 124 Parts 32 | 5 17 10 Haulers Intercepted 2 | . 2 . Recyclers Shooed 1 | . . 1 Parts Field Recycled . | . . . Retrieved Matter . | . . . Parts Self-Destructed . | . . . Prevented . | . . . Parts Restored . | . . . Kills | -11 -10 -10 ------- Run | Yrd Mat Min Combat Hostiles Destroyed 15 | . 5 10 Guns 7 | . 5 2 Cannons 1 | . . 1 AOE 7 | . . 7 Classes Destroyed 7 | 1 4 2 Builder 1 | . . 1 Tunneler 1 | 1 . . Hauler 2 | . 2 . Watcher 1 | . 1 . Swarmer 3 | . 3 . Grunt 4 | . 2 2 Assembled 8 | . . 8 Best Kill Streak 8 | 1 3 8 Combat Bots Only 7 | . 3 7 Max Kills in Single Turn 3 | 1 1 3 Gunslinging . | . . . Exploded 2 | . . 2 Melee . | . . . Uniques/NPCs Destroyed . | . . . Combat | -11 -10 -10 -------- Run | Yrd Mat Min Hostile Shots Fired 67 | . 26 41 Missed 18 | . 7 11 Hits 49 | . 19 30 Melee 3 | . . 3 Projectile 46 | . 19 27 AOE 2 | . . 2 Damage Taken 827 | . 239 588 Core 263 | . 54 209 Absorbed by Shields . | . . . Redirected to Shielding 41 | . 3 38 Core Remaining (%) 100 | 100 . . Volleys Fired 64 | 1 37 26 Largest 2 | 2 2 2 Hottest 120 | 60 85 120 Shots Fired 106 | 2 66 38 Gun 92 | 2 66 24 Cannon . | . . . Launcher 5 | . . 5 Special 9 | . . 9 Kinetic 65 | 1 41 23 Thermal 36 | 1 25 10 Explosive 5 | . . 5 Electromagnetic . | . . . Robot Hit Streak 19 | 1 19 7 Robot Miss Streak 4 | . 4 4 Penetration Max . | . . . Secondary Targets . | . . . Shots Hit Robots 69 | 1 43 25 Core Hits 37 | 1 16 20 Critical Kills . | . . . Critical Parts Destroyed . | . . . Critical Strikes 1 | . . 1 Burn 1 | . . 1 Melee Attacks . | . . . Impact . | . . . Slashing . | . . . Piercing . | . . . Sneak Attacks . | . . . Combat Hostiles . | . . . Follow-up Attacks . | . . . Damage Inflicted 1210 | 11 442 757 Guns 599 | 11 442 146 Cannons . | . . . Explosions 526 | . . 526 Melee . | . . . Ramming 21 | . . 21 Kinetic 373 | . 227 146 Thermal 290 | 11 215 64 Explosive 526 | . . 526 Electromagnetic . | . . . Impact . | . . . Slashing . | . . . Piercing . | . . . Highest Corruption 2 | . . 2 Average Corruption 2 | . . 2 Corruption Purged . | . . . Corruption Blocked . | . . . Overload Shots . | . . . Overflow Damage 74 | . . 74 Projectiles . | . . . Explosions 74 | . . 74 Melee . | . . . Knockbacks . | . . . Impact . | . . . Kinetic . | . . . Secondary . | . . . Self-Inflicted Damage 70 | . . 70 Shots 2 | . . 2 Rammed 3 | . . 3 Targets Rammed 3 | . . 3 Kicked . | . . . Crushed . | . . . Highest Temperature 184 | 10 184 75 Average Temperature 42 | 7 52 23 Received Heat Transfer 225 | . 111 114 Siege Activations . | . . . Martial Activations . | . . . Shielding Activations . | . . . Robots Disrupted . | . . . Combat Hostiles . | . . . Robots Corrupted . | . . . Combat Hostiles . | . . . Parts Fried . | . . . Impact Corruptions . | . . . Robots Melted . | . . . Combat Hostiles . | . . . Parts Melted . | . . . Heat Transferred 1148 | 25 483 640 Parts Sabotaged . | . . . Parts Stolen . | . . . Parts Stripped . | . . . Power Chain Reactions . | . . . Alert | -11 -10 -10 ------- Run | Yrd Mat Min Maximum Alert Level . | . . . Low Security (%) 100 | 100 100 100 Level 1 . | . . . Level 2 . | . . . Level 3 . | . . . Level 4 . | . . . Level 5 . | . . . High Security . | . . . Max Security . | . . . Peak Influence 62 | 5 62 40 Initial . | . . . Average 7 | . 7 9 Influence Increases 256 | 5 170 81 Destroy 0b10 Robot/C 140 | . 100 40 Destroy 0b10 Robot/NC 25 | 5 15 5 Destroy Leader 36 | . 26 10 Successful Hack 28 | . 28 . Destroy Structure 27 | . 1 26 Influence Decreases 256 | 5 169 82 Entered New Map 1 | . . 1 Time Decay 232 | 5 159 68 Lost Part 23 | . 10 13 Squads Dispatched . | . . . Investigation . | . . . Extermination . | . . . Reinforcement . | . . . Assault . | . . . Garrison . | . . . Intercept . | . . . Searches Triggered . | . . . Construction Impeded . | . . . Haulers Reinforced . | . . . Active Scanning Responses . | . . . Cargo Convoy Interrupts . | . . . Stealth | -11 -10 -10 --------- Run | Yrd Mat Min Distress Signals 2 | . 1 1 Communications Jammed . | . . . Distress Signals . | . . . Times Spotted 48 | . 13 35 Peak Tracking Total 22 | . 4 22 Tactical Retreats 1 | . . 1 Traps | -11 -10 -10 ------- Run | Yrd Mat Min Traps Triggered . | . . . Indirectly . | . . . Trap Hack Attempts . | . . . Triggered . | . . . Disarmed . | . . . Reprogrammed . | . . . Reused . | . . . Traps Extracted . | . . . Installed . | . . . Triggered . | . . . Machines | -11 -10 -10 ---------- Run | Yrd Mat Min Machines Disabled . | . . . Max in Single Turn . | . . . Machines Repaired . | . . . Machines Dismantled . | . . . Machines Sabotaged . | . . . Overloaded Fab Kills . | . . . Hacking | -11 -10 -10 --------- Run | Yrd Mat Min Machines Accessed 8 | . 8 . Terminals 6 | . 6 . Fabricators . | . . . Repair Stations . | . . . Recycling Units 2 | . 2 . Scanalyzers . | . . . Garrison Access . | . . . Total Hacks 22 | . 22 . Successful 12 | . 12 . Failed 10 | . 10 . Catastrophic 2 | . 2 . Database Lockouts . | . . . Manual 15 | . 15 . Terminals 19 | . 19 . Fabricators . | . . . Repair Stations . | . . . Recycling Units 3 | . 3 . Scanalyzers . | . . . Garrison Access . | . . . Terminal Hacks 5 | . 5 . Terminal Index 1 | . 1 . Registered Components 1 | . 1 . Zone Layout 3 | . 3 . Fabricator Hacks . | . . . Repair Station Hacks . | . . . Recycling Unit Hacks 2 | . 2 . Retrieve Components 2 | . 2 . Scanalyzer . | . . . Garrison Access Hacks . | . . . Unauthorized Hacks 5 | . 5 . Terminals 5 | . 5 . Skim 5 | . 5 . Fabricators . | . . . Repair Stations . | . . . Recycling Units . | . . . Scanalyzers . | . . . Garrison Access . | . . . Data Cores Recovered . | . . . Used . | . . . Hacking Detections 6 | . 6 . Full Trace Events . | . . . Feedback Events . | . . . Feedback Blocked . | . . . Robot Schematics Acquired . | . . . Robots Built . | . . . Authchips . | . . . Time . | . . . Total Robot Build Rating . | . . . Part Schematics Acquired . | . . . Parts Built . | . . . Authchips . | . . . Time . | . . . Total Part Build Rating . | . . . Part Studies Acquired . | . . . Parts Repaired . | . . . Time . | . . . Parts Recycled . | . . . Recycled Matter . | . . . Retrieved Matter . | . . . Retrieved Components 8 | . 8 . Parts Scanalyzed . | . . . Part Schematics Acquired . | . . . Parts Damaged . | . . . Bothacking | -11 -10 -10 ------------ Run | Yrd Mat Min Used RIF Installer . | . . . Robots Hacked . | . . . Non-combat . | . . . Combat . | . . . Robot Hacks Applied . | . . . Relay Couplers Released . | . . . Fabnet Peak Effective % . | . . . Robots Rewired . | . . . Allies Hacked . | . . . Hacks Repelled . | . . . Allies | -11 -10 -10 -------- Run | Yrd Mat Min Total Allies . | . . . Largest Group . | . . . Highest-Rated Group . | . . . Highest-Rated Ally . | . . . Total Orders . | . . . Ally Attacks . | . . . Total Damage . | . . . Kills . | . . . Allies Corrupted . | . . . Allies Melted . | . . . Intel | -11 -10 -10 ------- Run | Yrd Mat Min Active Infowar (turns) 650 | 8 386 256 Optics 537 | . 281 256 Seismic 113 | 8 105 . Robot Analysis Total . | . . . Derelict Logs Recovered . | . . . Drone Launches . | . . . Drone Recoveries . | . . . Exploration | -11 -10 -10 ------------- Run | Yrd Mat Min Turns Passed 1389 | 29 1084 276 Spaces Moved 728 | 34 518 176 Core 728 | 34 518 176 Treads . | . . . Legs . | . . . Wheels . | . . . Hover . | . . . Flight . | . . . Fastest Speed 50 | 50 50 50 Average Speed 105 | 50 111 96 Slowest Speed 150 | 50 150 150 Overloaded Moves . | . . . Propulsion Burnouts . | . . . Robots Hopped . | . . . Potential Cave-ins . | . . . Cave-ins Triggered . | . . . Exploration Rate (%) 33 | 3 74 22 Regions Visited 2 Branch Regions 1 Pre-discovered Areas 1 | . 1 . Known Exits Taken 1 | . 1 . Unknown Exits Taken 1 | 1 . . Scrap Searched . | . . . Spaces Dug . | . . . Terrain Destroyed 58 | . . 58 Melee . | . . . Projectile . | . . . AOE 58 | . . 58 Terrain Rammed . | . . . Walls Destroyed . | . . . Machines Disabled . | . . . Actions | -11 -10 -10 --------- Run | Yrd Mat Min Total 1252 | 43 965 244 Wait 411 | . 395 16 Move 726 | 33 517 176 Hop . | . . . Pick Up 18 | 6 7 5 Fast Attach 7 | . 2 5 Attach 8 | 3 3 2 Detach . | . . . Swap 2 | . 1 1 Drop 13 | . 3 10 Fire 64 | 1 37 26 Melee . | . . . Ram 3 | . . 3 Kick . | . . . Crush . | . . . Escape Stasis . | . . . Rewire . | . . . Trap . | . . . Miscellaneous . | . . . Route ------- -11/Scrapyard -10/Materials (discovered 4 exits: [*Mat x2] / *Min / Sub) -10/Mines History --------- Turn | Location | Event 5 | -11/Scrapyard | Discovered new exit (range 15) 30 | -11/Scrapyard | Entered Materials 68 | -10/Materials | Discovered new exit (range 12) 277 | -10/Materials | Discovered new exit (range 13) 277 | -10/Materials | Discovered new exit (range 12) 314 | -10/Materials | Build established: Mutant 439 | -10/Materials | Learned 2 Storage zone layouts 514 | -10/Materials | Learned 4 Subcaves zone layouts 633 | -10/Materials | Learned 2 Storage zone layouts 678 | -10/Materials | Learned Storage security intel 713 | -10/Materials | Learned Storage stockpile data 740 | -10/Materials | Learned Storage trap positions 775 | -10/Materials | Identified exit to Mines 775 | -10/Materials | Identified exit to Subcaves 819 | -10/Materials | Learned location of Mines (-10) 873 | -10/Materials | Learned location of 1 exit from Recycling 937 | -10/Materials | Learned 2 Storage zone layouts 1114 | -10/Materials | Entered Mines 1121 | -10/Mines | Received a Rocket Launcher from a helpful Derelict 1142 | -10/Mines | A weapon hastily lodged in a ceiling crevice suddenly fell to the ground 1235 | -10/Mines | Assembled infested the area 1295 | -10/Mines | Core integrity fell below 50% 1331 | -10/Mines | Destroyed 7 combat bots 1376 | -10/Mines | Core integrity fell below 20% 1390 | -10/Mines | Destroyed by as-12386 with Assembled Rifle Last Messages --------------- 01317_ as-22068 destroyed. 01317_ as-28139 destroyed. 01319_ The unstable cave ceiling collapses. 01324_ Acquired 35 matter. 01333_ The unstable cave ceiling collapses. 01347_ T-07 Excavator is excavating. 01373_ The unstable cave ceiling collapses. 01374_ Rocket Launcher destroyed. 01374_ Destroyed Rocket Launcher. 01377_ The unstable cave ceiling collapses. 01383_ as-05691 destroyed. 01384_ The unstable cave ceiling collapses. 01386_ Visual Processing Unit destroyed. 01386_ System corrupted by crushing effect (+2). 01386_ Knocked back. 01388_ The unstable cave ceiling collapses. 01389_ U-05 Engineer lays Concrete. 01390_ Core Shielding destroyed. 01390_ System corrupted by crushing effect (+4). 01390_ U-05 Engineer lays Concrete. Map ----- +----------------------------------------------------+ | ?#########[#####????????????????????????? | | ?# ##=#????????????????????????????? | | ?# ## #????????????????????????????? | | ?#""" = % #??####??????????????????????? | | ?#""" ####?## ##?????????????????????? | | ?#""" #??### #?????????????????????? | | ?# #### #?????????????????????? | | ?# ## """ #?????????????????????? | | ?## ##### """ ##?????????????????????? | | ??# #???# """ ##????????????????????? | | ??# #???# ##???????????????????? | | ??# #???## #???????????????????? | | ??# #????##### ##???????????????????? | | ??# #??????### ##??????????????????? | | ??# #??????# # # # #??????????????????? | | ??# #??????## ##??????????????????? | | ??# #????### # #???????????????????? | | ??# ###?## = #???????????????????? | | ??# #?? # ####### #??????????????? | | ??### #### # # u #??????????????? | | ????# ![*=%% % # ######??????????????? | | ????# ####### # #???????????????????? | | ????# #???## #???????????????????? | | ????# #???# a= #???????????????????? | | ????#$#???# a #???????????????????? | | ????# #???### @ #???????????????????? | | ???? ?????# # *= #???????????????????? | | ????" ?????####%####???????????????????? | | ???? ??????## ##?????????????????????? | | ???? ?????## ##????????????????????? | | ???? ?????# ##???????????????????? | | ????# #?????# #???????????????????? | | ?????%??????# #???????????????????? | | ????? ??????# ##???????????????????? | | ????? ??????# #????????????????????? | | ????? ??????# #????????????????????? | | ????? ??????## #????????????????????? | | ?????????????### ##???????????????????? | | ???????????????## #####???????????????? | | ????????????????## ##??????????????? | | ?????????????????# ###????????????? | | ?????????????????## ###??????????? | | ??????????????????### ##?????????? | | ????????????????????##### #?????????? | | ????????????????????????#### ##????????? | | ???????????????????????????## #????????? | | ????????????????????????????# #????????? | | ????????????????????????????# #???????? | | ????????????????????????????#####???????? | | ????????????????????????????????????????? | +----------------------------------------------------+ Best States ------------- Heat Dissipation 25 Energy Generation 10 Energy Capacity 250 Matter Stores 300 Matter Capacity 300 Sight Range 18 Terrain Scan Density 10 Core Shielding 20 Evasion (%) 50 Item Schematics ----------------- None Robot Schematics ------------------ None Fabricated ------------ Nothing Repaired ---------- Nothing Studied --------- None Alien Tech Used ----------------- None Achievements -------------- None Challenges ------------ None Game ------ Seed MicrowarpCooledStripper Manual? 0 Play Time 00:09:50 Cumulative 497.1 hours Start 2025.11.14 @ 08:24:22 End 2025.11.14 @ 08:31:52 Sessions 1 Manual Loads 0 Difficulty Rogue Special Mode None Game No. 671 Rogue 671 Adventurer 0 Explorer 0 Win Type - Total 16 Types 8/0/2/2/1/0/2/1/0/0 Lore% 91 Gallery% 85 Achievement% 66 Wizard Run 0 Options --------- Layout 0 ASCII 0 Keyboard 0 Movement Mouse Keybinds 0 Fullscreen 1 Font 24/Terminus Map View 76x50 Zoom Use 0% Tactical HUD 1 Map Filters NONE Filters NONE Steam 1 RUN: aa0ee8a9-adee-4b81-9b29-ad8518676c38